bitfinex/quotes_ETHUSD_20251118
["timestamp","ask_amount","ask_price","bid_price","bid_amount"]
[1763439761909,7.05009404,3005.8,3001.9,0.01657874]
[1763439762075,0.293,3003.4,3001.8,0.6433]
[1763439762434,0.405504,3003.3,3001.8,0.6433]
[1763439762730,0.04162226,3003.2,3001.9,0.4627]
[1763439763009,0.04162226,3003.2,3001.5,0.1806]
[1763439763010,0.405504,3003.2,3001.5,0.1806]
[1763439763402,0.888804,3003.2,3001.6,0.47927927]
[1763439763837,0.405504,3003.0,3001.6,0.4627]
[1763439764349,0.4833,3003.1,3001.6,0.4627]
[1763439764350,0.405504,3002.8,3001.6,0.4627]
[1763439764715,0.405504,3003.0,3001.7,0.0165815]
[1763439764914,0.002,3001.9,3001.7,0.0165815]
[1763439765146,0.293,3001.8,3001.7,0.0165815]
[1763439765348,2.701,3001.8,3001.6,0.89246184]
[1763439765547,1.497,3001.8,3001.6,0.87587035]
[1763439765847,0.293,3001.8,3001.7,1.33857035]
[1763439766011,0.293,3001.8,3001.7,1.6072701]
[1763439766416,0.293,3001.8,3001.7,0.73139975]
[1763439766639,0.293,3001.8,3001.7,0.74798794]
[1763439766963,0.002,3001.9,3001.7,1.91581507]
[1763439767257,0.002,3002.3,3001.8,0.4627]
[1763439767479,0.002,3002.3,3002.2,1.17569165]
[1763439767687,0.002,3002.3,3002.2,1.63839165]
[1763439768354,0.295,3002.3,3002.2,0.4627]
[1763439768884,0.0591,3005.0,3002.2,0.4627]
[1763439768885,0.4833,3004.4,3002.2,0.47927432]
[1763439769042,0.0591,3005.0,3003.2,0.88202036]
[1763439769242,0.293,3004.9,3003.6,0.88202036]
[1763439769470,0.293,3004.9,3003.7,0.88202036]
[1763439769976,0.4833,3004.8,3003.6,1.08782511]
[1763439770274,0.04160149,3004.7,3003.6,0.88202036]
[1763439770479,0.4833,3004.6,3003.8,0.88202036]
[1763439770771,0.405504,3004.5,3003.6,0.88202036]
[1763439770974,0.405504,3004.5,3003.6,1.10435172]
[1763439771139,0.405504,3004.8,3003.7,0.88202036]
[1763439771345,0.405504,3004.8,3003.8,0.88202036]
[1763439772048,0.293,3004.9,3003.8,0.88202036]
[1763439772049,0.405504,3004.6,3003.8,0.88202036]
[1763439772679,0.405504,3004.8,3003.9,0.88202036]
[1763439772887,0.405504,3004.4,3003.9,0.88202036]
[1763439773195,0.888804,3004.8,3003.9,0.88202036]
[1763439773496,0.888804,3004.8,3004.0,0.88202036]
[1763439774089,0.405504,3004.8,3004.1,0.89853646]
[1763439774257,0.405504,3004.8,3004.2,0.88202036]
[1763439774469,0.293,3004.9,3004.3,0.88202036]
[1763439774797,0.0416001,3004.8,3004.3,0.88202036]
[1763439774944,0.405504,3004.8,3003.9,0.88202036]
[1763439775243,0.405504,3004.2,3003.8,0.88202036]
[1763439775443,0.405504,3004.2,3003.9,0.88202036]
[1763439776106,0.1639,3004.0,3003.9,0.88202036]
[1763439776384,0.862404,3004.0,3003.8,0.88202036]
[1763439776545,0.862404,3004.0,3003.7,0.88202036]
[1763439776945,1.345704,3004.0,3003.7,0.88202036]
[1763439777258,0.862404,3004.0,3003.7,0.88202036]
[1763439777442,0.405504,3003.8,3003.6,0.88202036]
[1763439777645,0.405504,3003.8,3003.5,0.88202036]
[1763439777855,0.405504,3003.8,3003.4,0.88202036]
[1763439778150,0.405504,3003.8,3002.6,2.81475431]
[1763439778151,0.405504,3003.8,3003.5,0.88202036]
[1763439778701,0.888804,3003.8,3003.4,0.88202036]
[1763439779084,0.405504,3003.8,3003.5,0.88202036]
[1763439779288,0.405504,3003.9,3003.5,0.88202036]
[1763439779488,0.4569,3004.0,3003.7,0.88202036]
[1763439779489,0.1639,3004.0,3003.7,0.88202036]
[1763439779660,0.292,3003.8,3003.7,0.88202036]
[1763439779862,0.292,3003.8,3003.6,0.88202036]
[1763439780095,0.292,3003.8,3003.7,0.88202036]
[1763439780499,0.697504,3003.8,3003.7,0.88202036]
[1763439780856,0.405504,3003.7,3003.5,1.17602715]
[1763439781215,0.292,3003.8,3003.6,0.89093142]
[1763439781416,0.04158488,3005.9,3003.6,1.17602715]
[1763439781560,0.7753,3004.9,3004.0,0.8917357]
[1763439781767,0.7753,3004.9,3003.9,0.8917357]
[1763439781768,0.4471041,3004.8,3003.9,0.8917357]
[1763439781960,0.405504,3003.8,3003.7,0.8917357]
[1763439782289,0.292,3003.8,3003.7,1.17602715]
[1763439782612,0.04158903,3005.6,3003.7,0.77323952]
[1763439782613,0.4833,3005.6,3003.7,0.77323952]
[1763439782772,0.46443605,3005.8,3005.0,0.89219835]
[1763439782970,0.4833,3005.7,3005.1,0.89219835]
[1763439783589,0.04158903,3005.6,3005.1,0.89219835]
[1763439783794,0.4833,3005.7,3005.1,0.89219835]
[1763439783795,0.002,3005.2,3005.1,0.89219835]
[1763439784101,0.002,3005.2,3005.1,2.17317632]
[1763439784309,0.002,3005.2,3005.1,0.38877962]
[1763439784310,0.294,3005.2,3005.1,0.38877962]
[1763439784471,0.294,3005.2,3005.1,1.78271376]
[1763439784863,0.294,3005.2,3005.0,1.78271376]
[1763439785264,2.406,3005.1,3005.0,1.78271376]
[1763439785520,0.294,3005.2,3005.0,0.4627]
[1763439785717,0.294,3005.2,3005.1,0.6433]
[1763439785861,0.294,3005.2,3005.1,0.96204351]
[1763439786064,0.002,3007.2,3005.2,0.4592]
[1763439786299,0.4559,3007.2,3006.5,0.89045896]
[1763439786609,0.4559,3007.2,3006.3,0.89045896]
[1763439786610,0.04156828,3007.1,3006.3,0.89045896]
[1763439786796,0.405504,3007.1,3006.2,0.89045896]
[1763439787106,0.4539,3007.0,3006.2,0.89045896]
[1763439787333,0.292,3007.0,3006.2,0.20777376]
[1763439787618,0.292,3007.0,3006.9,1.08065896]
[1763439787791,0.292,3007.0,3006.9,1.18312144]
[1763439787993,0.292,3007.0,3006.7,1.78091793]
[1763439788325,0.292,3007.0,3006.8,1.18235201]
[1763439788871,0.405504,3006.9,3006.8,1.18235201]
[1763439789101,0.405504,3006.9,3006.8,0.88830708]
[1763439789307,0.405504,3006.9,3006.7,0.88830708]
[1763439790074,0.405504,3006.9,3006.4,0.88830708]
[1763439790075,0.859404,3006.9,3006.4,0.88830708]
[1763439790368,0.859404,3006.9,3005.6,2.83375724]
[1763439790369,0.405504,3006.7,3005.7,0.88830708]
[1763439790611,0.405504,3005.8,3005.4,0.88830708]
[1763439790813,0.405504,3005.6,3005.0,0.88830708]
[1763439791024,0.33358765,3005.7,3004.1,0.1806]
[1763439791025,0.405504,3005.0,3004.5,0.88830708]
[1763439791173,0.1942,3005.1,3004.3,0.88830708]
[1763439791174,0.405504,3004.8,3004.3,0.88830708]
[1763439791369,0.405504,3004.8,3003.9,0.88830708]
[1763439791370,0.405504,3004.6,3003.9,0.88830708]
[1763439791620,0.292,3004.9,3003.1,2.56475724]
[1763439791621,0.405504,3003.9,3003.3,0.88830708]
[1763439791912,0.1942,3005.1,3003.5,0.88830708]
[1763439791913,0.405504,3003.7,3003.5,0.88830708]
[1763439792125,0.292,3003.8,3003.2,0.1902]
[1763439792126,0.292,3003.8,3003.6,1.18235201]
[1763439792284,0.292,3003.8,3003.5,1.78091793]
[1763439792625,0.1942,3005.1,3003.6,0.4592]
[1763439792770,0.697504,3005.0,3004.5,0.89095683]
[1763439792970,0.292,3004.9,3004.6,0.89095683]
[1763439793167,0.1924,3006.3,3004.7,0.4592]
[1763439793168,0.4539,3006.1,3004.7,0.4592]
[1763439793372,0.292,3005.8,3005.2,0.89089191]
[1763439793908,0.292,3005.8,3005.4,0.89089191]
[1763439794311,0.292,3005.8,3005.5,0.89089191]
[1763439794710,0.405504,3005.7,3005.5,0.89089191]
[1763439794953,0.292,3005.8,3005.4,0.89089191]
[1763439795088,0.859404,3005.7,3005.4,0.89089191]
[1763439795296,0.405504,3005.5,3005.1,0.89089191]
[1763439795596,1.31249664,3005.5,3005.2,0.89089191]
[1763439795827,1.31249664,3005.5,3005.3,0.89089191]
[1763439796120,1.31249664,3005.5,3005.3,1.18785588]
[1763439796524,0.405504,3005.5,3005.3,1.18785588]
[1763439797527,0.4539,3006.7,3005.4,1.64705588]
[1763439797743,0.4539,3007.8,3006.5,1.78191366]
[1763439798034,0.002,3008.5,3005.3,0.29697695]
[1763439798035,0.4559,3008.5,3006.7,2.37455724]
[1763439798186,0.4559,3008.5,3007.0,2.37455724]
[1763439798187,0.002,3008.5,3007.0,2.37455724]
[1763439798390,0.002,3008.5,3007.1,0.71309546]
[1763439798590,0.002,3008.5,3007.5,0.1902]
[1763439798789,0.226,3007.8,3007.6,0.01642588]
[1763439799011,0.226,3007.8,3007.7,0.4701]
[1763439800331,0.226,3007.8,3007.7,2.24437778]
[1763439800518,0.226,3007.8,3007.6,1.77427778]
[1763439801017,0.226,3007.8,3007.7,2.26080093]
[1763439801331,0.002,3009.0,3007.7,2.26080093]
[1763439801332,0.002,3009.0,3007.8,0.90699264]
[1763439801540,0.002,3009.6,3008.7,2.35946454]
[1763439801692,0.002,3009.6,3008.4,0.90699264]
[1763439801693,0.002,3009.6,3008.8,2.37585398]
[1763439801892,0.002,3009.6,3008.9,0.2375854]
[1763439802094,0.002,3009.6,3009.0,2.37585067]
[1763439802337,0.224,3009.5,3009.4,1.1761988]
[1763439803313,0.224,3009.5,3009.4,0.4701]
[1763439803513,0.224,3009.5,3009.4,1.36755516]
[1763439803833,0.224,3009.5,3009.4,0.7244754]
[1763439804007,0.224,3009.5,3009.4,1.91495828]
[1763439804334,0.224,3009.5,3009.4,1.60335501]
[1763439804531,0.224,3009.5,3009.4,0.7244754]
[1763439804843,0.224,3009.5,3009.4,0.4701]
[1763439805058,0.224,3009.5,3009.4,0.6506]
[1763439805211,2.628,3009.5,3009.4,0.66697508]
[1763439805557,1.426,3009.5,3009.4,0.6506]
[1763439805846,1.426,3009.5,3009.4,1.52941099]
[1763439806006,1.426,3009.5,3009.4,1.79976287]
[1763439806206,0.1893,3011.4,3009.5,0.4701]
[1763439806412,0.1893,3010.7,3009.6,0.87700213]
[1763439806720,0.1893,3010.7,3009.7,0.01636792]
[1763439806721,0.405504,3010.6,3009.7,0.01636792]
[1763439806916,0.405504,3010.6,3009.7,0.48646792]
[1763439807245,0.1893,3011.4,3009.7,0.48646792]
[1763439807246,0.04352134,3010.5,3009.7,1.3]
[1763439807462,0.292,3010.1,3009.8,0.4701]
[1763439807745,0.292,3010.1,3009.9,0.01636129]
[1763439807948,0.292,3010.1,3010.0,0.4701]
[1763439808447,0.002,3010.5,3010.0,0.4701]
[1763439808647,0.292,3010.1,3010.0,0.48645964]
[1763439808849,0.292,3010.1,3010.0,0.4701]
[1763439809221,0.292,3010.1,3009.6,0.87700213]
[1763439809434,0.292,3010.1,3009.7,0.4701]
[1763439809813,0.002,3010.5,3009.7,0.4701]
[1763439810014,0.292,3010.1,3009.8,0.89336667]
[1763439810215,0.292,3010.1,3009.7,0.4701]
[1763439810525,0.002,3010.5,3009.7,0.4701]
[1763439810526,0.292,3010.0,3009.7,0.4701]
[1763439811122,0.292,3010.0,3009.4,0.1805]
[1763439811416,0.292,3009.9,3009.4,0.6506]
[1763439811750,0.292,3009.9,3008.9,1.34710213]
[1763439811950,0.292,3009.9,3008.5,1.36348323]
[1763439812247,0.292,3009.9,3008.6,1.34710213]
[1763439812465,0.405504,3009.8,3008.6,1.61843593]
[1763439812617,0.866904,3009.8,3008.4,0.1805]
[1763439812815,0.866904,3009.8,3008.1,0.4701]
[1763439812816,0.50293237,3009.7,3008.1,1.34710213]
[1763439813016,0.50293237,3009.7,3006.9,2.91402459]
[1763439813017,0.405504,3009.6,3007.8,0.87700213]
[1763439813256,0.405504,3009.6,3007.8,0.26938847]
[1763439813421,0.405504,3009.4,3007.8,0.26938847]
[1763439813777,0.405504,3009.4,3007.9,0.0164032]
[1763439813917,0.6507,3009.5,3007.2,1.05750213]
[1763439813918,0.405504,3009.2,3007.2,1.05750213]
[1763439814244,1.09629264,3009.5,3007.2,1.05750213]
[1763439814245,0.405504,3009.0,3007.3,1.36351911]
[1763439814415,0.292,3008.9,3007.6,0.87700213]
[1763439814917,0.866904,3009.4,3007.2,1.9484143]
[1763439814918,0.866904,3009.4,3007.7,1.34710213]
[1763439815152,0.405504,3009.2,3007.8,0.4701]
[1763439815476,1.31249664,3009.0,3007.8,0.4701]
[1763439815626,0.405504,3009.0,3007.7,0.87931389]
[1763439815953,0.90699264,3009.4,3007.7,0.87931389]
[1763439815954,1.201,3008.9,3007.8,1.38322481]
[1763439816121,0.292,3008.8,3008.0,0.87931389]
[1763439816319,0.292,3008.8,3008.3,0.87931389]
[1763439816653,0.292,3008.8,3008.1,0.4875]
[1763439816857,0.405504,3010.0,3008.7,0.1932]
[1763439817044,0.405504,3009.8,3008.8,0.01638057]
[1763439817230,0.04153237,3009.7,3008.2,0.4875]
[1763439817438,0.405504,3009.8,3008.3,0.01639488]
[1763439817840,0.292,3009.7,3008.4,0.4875]
[1763439818171,0.4603,3010.1,3008.5,0.01639104]
[1763439818326,0.292,3009.6,3008.5,0.6807]
[1763439818522,0.292,3009.6,3008.5,0.1932]
[1763439818829,0.405504,3009.7,3008.5,0.1932]
[1763439819023,0.291,3009.6,3008.6,0.4875]
[1763439819225,0.4623,3010.2,3008.6,0.4875]
[1763439819226,0.002,3009.2,3008.7,0.01638666]
[1763439819439,0.002,3009.2,3008.7,0.50389271]
[1763439819440,0.291,3009.1,3008.7,0.50389271]
[1763439819759,0.002,3009.2,3008.7,0.50389271]
[1763439819760,0.292,3009.0,3008.9,0.87931389]
[1763439819923,0.002,3009.6,3008.9,0.25361686]
[1763439820126,0.002,3009.6,3009.0,0.89711408]
[1763439820454,0.002,3009.6,3009.2,0.88073238]
[1763439820759,0.002,3009.6,3009.1,0.4875]
[1763439820760,0.002,3009.6,3009.3,0.4875]
[1763439821224,0.292,3009.5,3009.3,0.4875]
[1763439821426,0.292,3009.5,3009.0,1.36823238]
[1763439821629,0.292,3009.5,3009.1,0.4875]
[1763439821849,0.292,3009.5,3009.0,1.13449109]
[1763439822056,0.292,3009.5,3009.2,0.88073238]
[1763439822357,0.292,3009.5,3009.4,0.88073238]
[1763439822657,0.292,3009.5,3009.4,1.36823238]
[1763439822844,0.002,3009.6,3009.4,0.74289622]
[1763439823050,0.002,3009.6,3009.5,2.27178774]
[1763439823360,0.002,3009.9,3009.6,1.31249664]
[1763439823558,0.002,3009.9,3009.8,0.1932]
[1763439823759,0.002,3009.9,3009.8,2.5489274]
[1763439823977,0.002,3009.9,3009.8,4.37994913]
[1763439824275,0.002,3009.9,3009.8,2.02422173]
[1763439824478,0.52443435,3009.9,3009.8,2.02422173]
[1763439824658,0.294,3009.9,3009.8,2.02422173]
[1763439824853,0.294,3009.9,3009.8,2.04058578]
[1763439825061,0.002,3010.2,3009.9,0.405504]
[1763439825246,0.1955,3012.3,3010.0,0.01635853]
[1763439825446,1.201,3011.7,3011.6,0.88571717]
[1763439825647,1.493,3011.7,3011.6,0.88571717]
[1763439826162,1.493,3011.7,3011.5,1.18095623]
[1763439826364,0.292,3011.7,3011.5,1.77143435]
[1763439826547,0.292,3011.7,3011.5,1.78775041]
[1763439826741,0.6558,3012.3,3011.5,1.77143435]
[1763439826977,0.6558,3012.3,3011.6,1.18349021]
[1763439826978,0.1955,3012.3,3011.6,1.18349021]
[1763439827152,0.1955,3012.3,3011.4,1.77143435]
[1763439827153,0.1955,3013.3,3011.7,1.18349021]
[1763439827476,0.6558,3012.7,3011.5,2.36191247]
[1763439827659,0.292,3011.7,3011.6,2.84941247]
[1763439827856,0.292,3011.7,3011.6,2.36191247]
[1763439828382,0.292,3011.7,3010.8,4.08305805]
[1763439828383,0.292,3011.7,3011.3,2.36191247]
[1763439828564,0.292,3011.7,3011.6,1.78186793]
[1763439828967,1.353304,3011.7,3011.6,1.78186793]
[1763439829169,1.353304,3011.7,3011.5,1.1880737]
[1763439829370,1.353304,3011.7,3011.6,0.89123766]
[1763439829564,1.353304,3011.7,3011.5,1.1880737]
[1763439829947,0.865804,3011.6,3011.5,0.89079302]
[1763439830244,0.865804,3011.6,3011.1,1.78186793]
[1763439830245,0.865804,3011.6,3011.1,0.89079302]
[1763439830586,0.865804,3011.6,3010.3,2.36191247]
[1763439830587,0.405504,3011.4,3010.3,0.89214159]
[1763439830750,0.601004,3010.4,3010.3,0.89214159]
[1763439830946,0.893004,3010.4,3010.2,1.1880737]
[1763439831150,0.9073281,3010.3,3010.1,1.18937763]
[1763439831346,0.9073281,3010.3,3009.5,1.18937763]
[1763439831686,0.405504,3010.1,3009.4,1.18937763]
[1763439831979,0.405504,3010.1,3009.0,1.18937763]
[1763439832181,0.405504,3009.9,3008.9,1.18937763]
[1763439832496,0.405504,3009.9,3008.6,1.18937763]
[1763439832497,0.405504,3009.7,3008.6,1.18937763]
[1763439832645,0.405504,3009.5,3008.4,1.18937763]
[1763439832847,0.405504,3009.1,3008.2,1.18937763]
[1763439833047,0.405504,3008.9,3007.9,0.66648237]
[1763439833248,5.87176,3009.3,3007.8,0.001]
[1763439833249,0.405504,3008.7,3007.8,0.001]
[1763439833446,0.4603,3009.1,3007.8,0.001]
[1763439833447,0.44704465,3009.1,3007.8,0.001]
[1763439833682,0.865804,3009.0,3007.8,0.001]
[1763439833857,1.31249664,3008.6,3007.8,0.001]
[1763439834060,0.90699264,3008.6,3007.8,0.001]
[1763439834266,1.31249664,3008.3,3007.8,0.001]
[1763439834460,0.405504,3008.2,3007.8,0.001]
[1763439834671,0.865804,3008.2,3007.8,0.001]
[1763439834849,0.405504,3008.0,3007.8,0.001]
[1763439835051,0.90699264,3008.3,3007.8,0.001]
[1763439835052,0.90736123,3007.9,3007.8,0.001]
[1763439835255,3.30936123,3007.9,3007.8,0.001]
[1763439835588,4.17479664,3007.9,3007.8,0.001]
[1763439835977,2.97379664,3007.9,3007.8,0.001]
[1763439836162,2.97379664,3007.9,3005.6,2.36191247]
[1763439836163,0.90699264,3007.8,3005.6,1.85813004]
[1763439836510,0.90699264,3007.8,3005.3,0.90799264]
[1763439836511,0.405504,3007.1,3005.7,0.4875]
[1763439837001,0.405504,3006.9,3005.7,0.4875]
[1763439837980,0.405504,3006.7,3005.3,0.001]
[1763439838186,0.405504,3006.7,3005.4,0.4875]
[1763439838746,0.405504,3006.5,3005.3,0.001]
[1763439838978,0.4875,3007.0,3005.3,0.001]
[1763439838979,0.405504,3006.3,3005.3,0.001]
[1763439839211,0.405504,3006.1,3005.3,0.001]
[1763439839412,0.405504,3005.9,3005.3,0.001]
[1763439839934,0.1955,3005.8,3005.3,0.001]
[1763439840222,0.292,3005.7,3005.3,0.001]
[1763439840580,0.7523,3005.7,3005.3,0.001]
[1763439840779,0.292,3005.7,3005.3,0.001]
[1763439840981,5.87176,3007.8,3005.3,0.4885]
[1763439841321,0.405504,3006.8,3005.3,0.001]
[1763439841520,0.405504,3006.6,3005.3,0.001]
[1763439841692,0.601004,3005.4,3005.3,0.001]
[1763439841884,0.601004,3005.4,3004.9,0.001]
[1763439841885,0.405504,3005.3,3004.9,0.001]
[1763439842222,0.405504,3005.3,3002.6,0.4875]
[1763439842223,0.405504,3004.6,3002.6,0.4875]
[1763439842381,0.405504,3004.6,3002.4,0.1932]
[1763439842382,0.405504,3004.4,3002.4,0.1932]
[1763439842603,1.31249664,3004.0,3002.2,0.001]
[1763439842806,1.65317443,3004.3,3002.2,0.001]
[1763439842807,0.601004,3002.6,3002.2,0.001]
[1763439843018,0.893004,3002.6,3002.2,0.001]
[1763439843353,0.1955,3003.0,3002.2,0.001]
[1763439843509,0.292,3002.6,3002.2,0.001]
[1763439844041,1.157804,3002.6,3002.2,0.001]
[1763439844432,0.1955,3003.0,3002.2,0.001]
[1763439844638,1.19943042,3002.9,3002.2,0.001]
[1763439845143,0.405504,3002.7,3002.2,0.001]
[1763439845342,3.31143458,3002.6,3002.2,0.001]
[1763439845510,4.21842722,3002.6,3002.2,0.001]
[1763439845844,1.81442722,3002.6,3002.2,0.001]
[1763439846015,1.77279664,3002.6,3002.2,0.001]
[1763439846217,1.77939664,3002.6,3002.2,0.001]
[1763439846436,2.07139664,3002.6,3002.2,0.001]
[1763439847739,1.77939664,3002.6,3002.2,0.001]
[1763439847912,1.60449664,3002.6,3002.2,0.001]
[1763439848111,2.07139664,3002.6,3002.2,0.001]
[1763439848444,1.31249664,3002.6,3002.2,0.001]
[1763439848651,0.292,3002.6,3002.2,0.001]
[1763439849013,0.697504,3002.6,3002.2,0.001]
[1763439849231,1.164404,3002.6,3002.2,0.001]
[1763439849442,0.292,3002.6,3002.2,0.001]
[1763439850519,0.405504,3002.8,3002.2,0.001]
[1763439850716,0.405504,3002.6,3002.2,0.001]
[1763439851243,0.872404,3002.6,3002.2,0.001]
[1763439851555,0.586904,3002.3,3002.2,0.001]
[1763439851756,0.405504,3002.2,3001.1,0.001]
[1763439852074,0.405504,3002.2,2999.2,0.197]
[1763439852075,1.66680067,3001.9,2999.2,0.197]
[1763439852349,0.33363752,3002.1,2999.2,0.197]
[1763439852350,0.405504,3001.6,2999.2,0.197]
[1763439852529,0.405504,3001.4,2999.2,0.197]
[1763439852733,0.1814,3002.3,2999.7,0.4831]
[1763439852734,0.405504,3001.2,2999.7,0.4831]
[1763439852952,0.405504,3001.2,2999.2,0.197]
[1763439852953,0.292,3001.1,2999.2,0.197]
[1763439853245,0.405504,3000.9,3000.1,0.4831]
[1763439853457,0.872404,3000.9,2999.2,0.197]
[1763439853759,1.164404,3000.9,2999.3,0.4831]
[1763439853960,0.872404,3000.9,2999.3,0.4831]
[1763439854130,1.164404,3000.9,2999.3,0.4831]
[1763439854333,0.292,3000.9,2999.8,0.4831]
[1763439854749,0.405504,3001.4,2999.8,0.4831]
[1763439854947,0.405504,3001.2,2999.2,0.197]
[1763439855154,0.586904,3000.9,2999.5,0.4831]
[1763439855333,1.789904,3000.9,2999.5,0.4831]
[1763439855718,0.405504,3000.8,2999.2,0.197]
[1763439855935,0.405504,3000.6,2999.2,0.197]
[1763439856355,0.1814,3000.9,2999.2,0.6801]
[1763439856549,1.164404,3000.6,2999.2,0.6801]
[1763439857346,1.20606233,3000.6,2998.8,0.1932]
[1763439857650,1.20606233,3000.6,2998.9,0.197]
[1763439857856,0.872404,3000.6,2999.2,0.4831]
[1763439858378,1.164404,3000.6,2999.2,0.4831]
[1763439859701,1.20606233,3000.6,2998.9,0.197]
[1763439860302,1.20606233,3000.6,2998.8,0.6456]
[1763439860513,0.405504,3000.5,2998.1,0.001]
[1763439860797,0.405504,3000.3,2998.1,0.001]
[1763439860951,0.405504,3000.1,2998.1,0.001]
[1763439861155,0.405504,2999.9,2998.1,0.4534]
[1763439861460,0.405504,2999.9,2998.5,0.4524]
[1763439861461,0.292,2999.8,2998.5,0.4524]
[1763439861660,0.405504,2999.7,2998.5,0.4524]
[1763439861968,0.856304,2999.7,2998.1,0.4534]
[1763439862384,3.522,3003.4,2998.1,0.4534]
[1763439862385,0.1975,3001.2,2999.6,0.1893]
[1763439862590,0.09999999,3003.0,2999.6,0.1893]
[1763439862591,0.1975,3001.6,2999.6,0.1893]
[1763439862792,0.292,3001.5,2999.7,0.4524]
[1763439862981,0.04164723,3001.4,2999.7,0.4524]
[1763439863178,0.292,3001.5,2999.7,0.4524]
[1763439863876,0.405504,3001.4,2999.7,0.4524]
[1763439864086,0.04164861,3001.3,2999.7,0.4524]
[1763439864471,0.292,3001.5,2999.7,0.4524]
[1763439864472,0.4508,3001.2,2999.7,0.4524]
[1763439864795,0.4508,3001.2,2998.4,0.90799264]
[1763439864796,0.405504,3001.1,2999.3,0.1893]
[1763439865093,0.405504,3001.1,2999.1,0.4524]
[1763439865094,0.292,3001.0,2999.1,0.4524]
[1763439865298,0.405504,3000.1,2999.2,0.1893]
[1763439865502,1.204,3000.2,2998.4,0.4534]
[1763439865503,0.405504,2999.9,2998.4,0.4534]
[1763439865876,0.405504,2999.7,2998.4,0.4534]
[1763439866199,0.405504,2999.5,2998.4,0.4534]
[1763439866384,0.405504,2999.7,2998.4,0.4534]
[1763439866590,0.405504,2999.7,2998.5,0.4524]
[1763439866910,0.4508,3000.4,2998.5,0.4524]
[1763439867203,0.292,3000.3,2998.5,0.4524]
[1763439867371,0.405504,3000.1,2998.5,0.4524]
[1763439867568,0.04166388,3000.2,2998.5,0.4524]
[1763439867569,0.405504,2999.9,2998.5,0.4524]
[1763439867802,0.405504,2999.7,2998.5,0.4524]
[1763439868107,0.405504,2999.5,2998.5,0.4524]
[1763439868617,0.405504,2999.3,2998.5,0.4524]
[1763439869266,0.405504,2999.8,2999.2,0.1893]
[1763439869466,0.405504,2999.6,2998.5,0.4524]
[1763439869676,0.4508,3000.4,2998.5,0.4524]
[1763439869989,0.4508,3000.4,2998.5,1.62260538]
[1763439869990,0.405504,3000.2,2998.5,1.62260538]
[1763439870598,0.405504,3000.0,2998.6,0.4524]
[1763439871813,0.405504,2999.8,2998.4,0.001]
[1763439872373,0.856304,2999.8,2998.4,0.001]
[1763439872702,0.856304,2999.8,2998.5,0.001]
[1763439872910,0.405504,2999.6,2998.5,0.001]
[1763439873125,0.4508,2999.7,2998.5,0.001]
[1763439873126,0.405504,2999.4,2998.5,0.001]
[1763439873619,0.405504,2999.2,2998.5,0.001]
[1763439874113,0.405504,2999.0,2998.5,0.001]
[1763439874275,0.405504,2998.8,2998.5,0.001]
[1763439874482,0.405504,2998.6,2998.5,0.001]
[1763439875428,2.80949664,2998.6,2998.5,0.001]
[1763439875629,1.60449664,2998.6,2998.5,0.001]
[1763439875928,0.292,2998.6,2998.5,0.4594]
[1763439876079,0.292,2998.6,2998.5,0.001]
[1763439876786,0.697504,2998.6,2998.5,0.001]
[1763439876989,0.4894,2999.3,2998.5,0.001]
[1763439876990,0.4894,2999.9,2998.5,0.001]
[1763439877187,0.1882,3000.0,2998.5,0.4594]
[1763439877405,0.1882,3000.0,2998.8,1.17020538]
[1763439877588,0.002,3000.5,2998.5,0.4594]
[1763439877589,0.002,3000.5,2999.1,1.17020538]
[1763439877902,0.292,2999.9,2999.2,1.17020538]
[1763439878215,0.292,2999.9,2999.3,1.17020538]
[1763439878816,0.405504,2999.8,2999.2,1.17020538]
[1763439879127,0.405504,2999.8,2999.3,1.17020538]
[1763439879684,0.405504,2999.8,2999.4,0.4584]
[1763439880086,0.405504,2999.8,2999.5,1.17020538]
[1763439880592,0.002,3000.5,2999.5,1.17020538]
[1763439880593,0.002,3000.5,2999.7,1.17020538]
[1763439880794,0.002,3000.5,3000.0,1.19560453]
[1763439880795,0.292,3000.4,3000.0,1.19560453]
[1763439881036,0.292,3000.4,3000.2,1.19560453]
[1763439881529,0.292,3000.4,3000.1,1.19560453]
[1763439881681,0.405504,3000.3,3000.1,1.19560453]
[1763439881882,0.002,3000.5,3000.0,1.19560453]
[1763439882096,0.002,3000.5,2999.8,1.9209779]
[1763439882097,0.1882,3000.2,2999.8,1.10530453]
[1763439882282,0.405504,3000.0,2998.5,0.001]
[1763439882487,0.533104,2998.6,2998.5,0.001]
[1763439882683,0.405504,2998.6,2998.5,0.001]
[1763439882888,0.293,2998.6,2998.5,0.001]
[1763439884120,0.04166527,3000.1,2998.5,0.001]
[1763439884121,0.04165694,3000.7,2998.5,0.4594]
[1763439884285,0.293,3000.1,2999.0,0.1847]
[1763439884685,0.53106666,3000.0,2998.5,0.001]
[1763439884934,0.405504,2999.9,2998.5,0.001]
[1763439885136,0.405504,2999.7,2998.5,0.001]
[1763439885314,1.205,2998.9,2998.5,0.001]
[1763439885633,0.293,2998.8,2998.5,0.001]
[1763439886620,1.205,2999.6,2998.5,0.001]
[1763439886621,0.1882,3000.6,2998.7,1.9209779]
[1763439886820,0.1882,3000.6,2999.1,1.79630609]
[1763439886821,0.293,3000.4,2999.1,1.79630609]
[1763439887007,0.293,3000.4,2998.8,0.23793779]
[1763439887008,0.0416625,3000.3,2998.8,0.23793779]
[1763439887189,0.405504,3000.2,2998.8,0.23793779]